[Event "*** Titled Tuesday Blitz"]
[Site "Chess.com"]
[Date "2020.04.14"]
[Round "4"]
[White "AlexandraSamaganova"]
[Black "mortngabriel"]
[Result "0-1"]
[WhiteElo "2157"]
[BlackElo "2377"]
[TimeControl "180+1"]
[EndTime "10:39:45 PDT"]
[Termination "mortngabriel won by resignation"]

1. c4 {[%clk 0:03:00.9]} 1... e6 {[%clk 0:02:59.6]} 2. Nc3 {[%clk 0:03:01.8]}
2... Nf6 {[%clk 0:02:59.6]} 3. e4 {[%clk 0:03:01.8]} 3... d5 {[%clk 0:03:00]} 4.
e5 {[%clk 0:03:01.8]} 4... d4 {[%clk 0:03:00.5]} 5. exf6 {[%clk 0:03:01.9]} 5...
dxc3 {[%clk 0:03:01.1]} 6. bxc3 {[%clk 0:03:02.4]} 6... Qxf6 {[%clk 0:03:00.1]}
7. Nf3 {[%clk 0:03:02.5]} 7... Bd6 {[%clk 0:02:49.6]} 8. Bd3 {[%clk 0:03:02.4]}
8... b6 {[%clk 0:02:40.4]} 9. Be4 {[%clk 0:02:58.1]} 9... c6 {[%clk 0:02:38.5]}
10. d4 {[%clk 0:02:58.5]} 10... h6 {[%clk 0:02:33.7]} 11. O-O {[%clk 0:02:58.2]}
11... O-O {[%clk 0:02:33.1]} 12. Rb1 {[%clk 0:02:55.2]} 12... Ba6 {[%clk
0:02:24.1]} 13. Bd3 {[%clk 0:02:47.4]} 13... Nd7 {[%clk 0:02:08.4]} 14. Re1
{[%clk 0:02:38.3]} 14... Rfd8 {[%clk 0:02:04.4]} 15. Qa4 {[%clk 0:02:24.6]}
15... Bb7 {[%clk 0:02:03.7]} 16. c5 {[%clk 0:02:19.8]} 16... Bxc5 {[%clk
0:01:55.7]} 17. Bc2 {[%clk 0:01:36]} 17... Bf8 {[%clk 0:01:38.7]} 18. Qc4 {[%clk
0:01:24.2]} 18... c5 {[%clk 0:01:28.1]} 19. Be4 {[%clk 0:01:15.4]} 19... Bxe4
{[%clk 0:01:26.2]} 20. Rxe4 {[%clk 0:01:16.3]} 20... cxd4 {[%clk 0:01:20.2]} 21.
cxd4 {[%clk 0:01:12]} 21... Rac8 {[%clk 0:01:03.6]} 22. Qa4 {[%clk 0:01:02.3]}
22... Qf5 {[%clk 0:01:00.9]} 23. Nd2 {[%clk 0:00:49.5]} 23... Nc5 {[%clk
0:00:55.1]} 24. dxc5 {[%clk 0:00:45.1]} 24... Bxc5 {[%clk 0:00:45.2]} 25. Rf4
{[%clk 0:00:14.9]} 25... Qg6 {[%clk 0:00:34.2]} 26. Rb3 {[%clk 0:00:09.4]} 26...
Bd6 {[%clk 0:00:30.6]} 27. Rc4 {[%clk 0:00:06.4]} 27... Qh5 {[%clk 0:00:29.7]}
28. Nf3 {[%clk 0:00:03.3]} 28... b5 {[%clk 0:00:23.9]} 29. Rxc8 {[%clk
0:00:02.6]} 29... Rxc8 {[%clk 0:00:24.2]} 30. Qxb5 {[%clk 0:00:01.6]} 30...
Rxc1+ {[%clk 0:00:23.4]} 31. Qf1 {[%clk 0:00:01]} 31... Rxf1+ {[%clk 0:00:22.6]}
32. Kxf1 {[%clk 0:00:01.9]} 32... Qd5 {[%clk 0:00:22.3]} 33. g3 {[%clk
0:00:01.2]} 33... a5 {[%clk 0:00:20.8]} 34. Kg2 {[%clk 0:00:01.3]} 34... a4
{[%clk 0:00:21.2]} 35. Re3 {[%clk 0:00:02]} 35... Qxa2 {[%clk 0:00:20.9]} 36. g4
{[%clk 0:00:02.4]} 36... Bc5 {[%clk 0:00:20.5]} 37. h4 {[%clk 0:00:02.7]} 37...
Bxe3 {[%clk 0:00:20.5]} 0-1

[Event "*** Titled Tuesday Blitz"]
[Site "Chess.com"]
[Date "2020.04.14"]
[Round "4"]
[White "WhiteKnight2612"]
[Black "Kotofeyca"]
[Result "1/2-1/2"]
[WhiteElo "2688"]
[BlackElo "2381"]
[TimeControl "180+1"]
[EndTime "10:39:46 PDT"]
[Termination "Game drawn by repetition"]

1. e4 {[%clk 0:03:00.9]} 1... c5 {[%clk 0:02:59.3]} 2. d4 {[%clk 0:03:00.2]}
2... cxd4 {[%clk 0:02:58.7]} 3. c3 {[%clk 0:03:01.1]} 3... Nf6 {[%clk
0:02:58.8]} 4. e5 {[%clk 0:03:00.5]} 4... Nd5 {[%clk 0:02:58.8]} 5. cxd4 {[%clk
0:03:01.4]} 5... Nc6 {[%clk 0:02:58.2]} 6. Nc3 {[%clk 0:03:01.2]} 6... Nxc3
{[%clk 0:02:57.7]} 7. bxc3 {[%clk 0:03:02.1]} 7... d5 {[%clk 0:02:58.5]} 8. Nf3
{[%clk 0:02:55.1]} 8... Bg4 {[%clk 0:02:57.7]} 9. Bd2 {[%clk 0:02:54.2]} 9... e6
{[%clk 0:02:56.7]} 10. Bd3 {[%clk 0:02:54.5]} 10... Be7 {[%clk 0:02:55.9]} 11.
h3 {[%clk 0:02:54.1]} 11... Bh5 {[%clk 0:02:55.3]} 12. Qe2 {[%clk 0:02:54]}
12... Rc8 {[%clk 0:02:54.7]} 13. O-O {[%clk 0:02:53.9]} 13... a6 {[%clk
0:02:48.8]} 14. Rab1 {[%clk 0:02:50.2]} 14... Na5 {[%clk 0:02:47.6]} 15. Qe3
{[%clk 0:02:29.3]} 15... Bg6 {[%clk 0:02:33.5]} 16. Nh2 {[%clk 0:02:20.8]} 16...
Nc4 {[%clk 0:02:23.1]} 17. Bxc4 {[%clk 0:02:13.9]} 17... Bxb1 {[%clk 0:02:20.2]}
18. Rxb1 {[%clk 0:02:10.1]} 18... Rxc4 {[%clk 0:02:15.9]} 19. Rxb7 {[%clk
0:02:10.2]} 19... O-O {[%clk 0:02:16.2]} 20. Ng4 {[%clk 0:02:06.7]} 20... Rc7
{[%clk 0:02:06.2]} 21. Rb3 {[%clk 0:02:04.6]} 21... Qd7 {[%clk 0:02:01.3]} 22.
Qg3 {[%clk 0:02:01.7]} 22... Kh8 {[%clk 0:02:01.1]} 23. h4 {[%clk 0:01:59]}
23... Qa4 {[%clk 0:01:59.5]} 24. Rb2 {[%clk 0:01:51.6]} 24... Qa3 {[%clk
0:01:59.2]} 25. Rc2 {[%clk 0:01:51]} 25... Rb7 {[%clk 0:01:46]} 26. h5 {[%clk
0:01:47.2]} 26... Qa4 {[%clk 0:01:25.1]} 27. Qd3 {[%clk 0:01:15.5]} 27... Rb1+
{[%clk 0:01:21.6]} 28. Kh2 {[%clk 0:01:15.5]} 28... Qb5 {[%clk 0:01:22]} 29. Qf3
{[%clk 0:01:15.4]} 29... Qf1 {[%clk 0:00:59.5]} 30. Kh3 {[%clk 0:01:14]} 30...
Qh1+ {[%clk 0:00:55.9]} 31. Nh2 {[%clk 0:01:13.4]} 31... Qd1 {[%clk 0:00:55.6]}
32. Qxd1 {[%clk 0:01:09.3]} 32... Rxd1 {[%clk 0:00:56.5]} 33. Nf3 {[%clk
0:01:00.9]} 33... Rb8 {[%clk 0:00:55]} 34. c4 {[%clk 0:01:01.2]} 34... dxc4
{[%clk 0:00:43.9]} 35. Rxc4 {[%clk 0:01:02.1]} 35... Kg8 {[%clk 0:00:40]} 36.
Rc7 {[%clk 0:01:00.4]} 36... Kf8 {[%clk 0:00:38.5]} 37. h6 {[%clk 0:00:58.7]}
37... gxh6 {[%clk 0:00:32.3]} 38. Bxh6+ {[%clk 0:00:58.2]} 38... Ke8 {[%clk
0:00:32.9]} 39. Ra7 {[%clk 0:00:49.5]} 39... Rb6 {[%clk 0:00:29.5]} 40. Be3
{[%clk 0:00:48.1]} 40... Rc6 {[%clk 0:00:27.1]} 41. Ra8+ {[%clk 0:00:25.6]}
41... Kd7 {[%clk 0:00:27]} 42. Ra7+ {[%clk 0:00:26]} 42... Kd8 {[%clk
0:00:27.1]} 43. Ra8+ {[%clk 0:00:26.4]} 43... Kc7 {[%clk 0:00:25.6]} 44. Ra7+
{[%clk 0:00:26]} 44... Kd8 {[%clk 0:00:25.6]} 45. Ra8+ {[%clk 0:00:26.4]} 45...
Kd7 {[%clk 0:00:20.9]} 46. Ra7+ {[%clk 0:00:26.4]} 46... Kd8 {[%clk 0:00:20.5]}
1/2-1/2

[Event "*** Titled Tuesday Blitz"]
[Site "Chess.com"]
[Date "2020.04.14"]
[Round "4"]
[White "bracuarta"]
[Black "FranciscodelaF"]
[Result "0-1"]
[WhiteElo "2201"]
[BlackElo "2416"]
[TimeControl "180+1"]
[EndTime "10:39:46 PDT"]
[Termination "FranciscodelaF won on time"]

1. d4 {[%clk 0:02:50.3]} 1... d5 {[%clk 0:02:58.5]} 2. c4 {[%clk 0:02:49.9]}
2... e6 {[%clk 0:02:58.3]} 3. Nc3 {[%clk 0:02:49.8]} 3... Nf6 {[%clk 0:02:58]}
4. Nf3 {[%clk 0:02:50.4]} 4... dxc4 {[%clk 0:02:54.5]} 5. e4 {[%clk 0:02:49.2]}
5... Bb4 {[%clk 0:02:53.3]} 6. Bg5 {[%clk 0:02:25.9]} 6... c5 {[%clk 0:02:19]}
7. e5 {[%clk 0:02:08.3]} 7... cxd4 {[%clk 0:01:56.8]} 8. exf6 {[%clk 0:02:00]}
8... gxf6 {[%clk 0:01:34.4]} 9. Bd2 {[%clk 0:01:47.5]} 9... dxc3 {[%clk
0:01:30.1]} 10. bxc3 {[%clk 0:01:46.2]} 10... Bc5 {[%clk 0:01:25.5]} 11. Bxc4
{[%clk 0:01:43.9]} 11... Qc7 {[%clk 0:01:12.2]} 12. Bd3 {[%clk 0:01:07.5]} 12...
Bd7 {[%clk 0:01:09.4]} 13. O-O {[%clk 0:01:06.7]} 13... Bc6 {[%clk 0:01:04.4]}
14. Qe2 {[%clk 0:01:06.6]} 14... Nd7 {[%clk 0:01:03.8]} 15. Be4 {[%clk
0:01:00.8]} 15... O-O-O {[%clk 0:00:49.8]} 16. Rab1 {[%clk 0:00:54.1]} 16...
Rhg8 {[%clk 0:00:45.5]} 17. Kh1 {[%clk 0:00:52.9]} 17... Rg4 {[%clk 0:00:40.8]}
18. Bxc6 {[%clk 0:00:43.8]} 18... Qxc6 {[%clk 0:00:40.7]} 19. h3 {[%clk
0:00:37.6]} 19... Rg7 {[%clk 0:00:39.2]} 20. Rg1 {[%clk 0:00:32.4]} 20... Rdg8
{[%clk 0:00:38.4]} 21. Bf4 {[%clk 0:00:26.1]} 21... e5 {[%clk 0:00:36.4]} 22.
Bg3 {[%clk 0:00:25.4]} 22... Bd6 {[%clk 0:00:33.6]} 23. Rbe1 {[%clk 0:00:19.2]}
23... Nc5 {[%clk 0:00:33]} 24. Nd2 {[%clk 0:00:18]} 24... Bc7 {[%clk 0:00:30.5]}
25. Qh5 {[%clk 0:00:16.4]} 25... Qe6 {[%clk 0:00:16.5]} 26. Ne4 {[%clk
0:00:13.6]} 26... Nxe4 {[%clk 0:00:15.2]} 27. Rxe4 {[%clk 0:00:13.5]} 27... f5
{[%clk 0:00:16]} 28. Rb4 {[%clk 0:00:11]} 28... f4 {[%clk 0:00:14.9]} 29. Bh2
{[%clk 0:00:10.7]} 29... Bd6 {[%clk 0:00:10.9]} 30. Rb5 {[%clk 0:00:08.3]} 30...
a6 {[%clk 0:00:11.4]} 31. Rb6 {[%clk 0:00:07.5]} 31... Qd5 {[%clk 0:00:11.5]}
32. Qf5+ {[%clk 0:00:05.8]} 32... Kc7 {[%clk 0:00:10.9]} 33. Rb2 {[%clk
0:00:04.1]} 33... Rxg2 {[%clk 0:00:10.3]} 0-1

[Event "*** Titled Tuesday Blitz"]
[Site "Chess.com"]
[Date "2020.04.14"]
[Round "4"]
[White "velemajstor767276"]
[Black "Maghalashvili"]
[Result "0-1"]
[WhiteElo "2582"]
[BlackElo "2868"]
[TimeControl "180+1"]
[EndTime "10:39:48 PDT"]
[Termination "Maghalashvili won on time"]

1. d4 {[%clk 0:03:00.2]} 1... Nf6 {[%clk 0:02:59.3]} 2. Bg5 {[%clk 0:02:58.7]}
2... e6 {[%clk 0:02:57.7]} 3. e4 {[%clk 0:02:57.3]} 3... h6 {[%clk 0:02:57.7]}
4. Bxf6 {[%clk 0:02:57.3]} 4... Qxf6 {[%clk 0:02:58.4]} 5. c3 {[%clk 0:02:58]}
5... d6 {[%clk 0:02:59]} 6. Bd3 {[%clk 0:02:57.9]} 6... g6 {[%clk 0:02:59.3]} 7.
Ne2 {[%clk 0:02:58.3]} 7... Bg7 {[%clk 0:02:59.6]} 8. O-O {[%clk 0:02:58.9]}
8... e5 {[%clk 0:02:55.8]} 9. f4 {[%clk 0:02:58.5]} 9... exd4 {[%clk 0:02:49.9]}
10. cxd4 {[%clk 0:02:57.3]} 10... Nc6 {[%clk 0:02:47.4]} 11. e5 {[%clk
0:02:56.1]} 11... dxe5 {[%clk 0:02:43.4]} 12. fxe5 {[%clk 0:02:29.3]} 12... Qd8
{[%clk 0:02:37.1]} 13. Bc4 {[%clk 0:02:13.4]} 13... O-O {[%clk 0:02:33.4]} 14.
Nbc3 {[%clk 0:02:09.2]} 14... Bf5 {[%clk 0:02:22.1]} 15. Rxf5 {[%clk 0:01:40.8]}
15... gxf5 {[%clk 0:02:20.2]} 16. Qd3 {[%clk 0:01:40.4]} 16... Ne7 {[%clk
0:02:15.5]} 17. Rf1 {[%clk 0:01:36.1]} 17... c5 {[%clk 0:02:11.8]} 18. e6 {[%clk
0:01:00.9]} 18... Bxd4+ {[%clk 0:01:50.6]} 19. Kh1 {[%clk 0:00:59.9]} 19... fxe6
{[%clk 0:01:49.5]} 20. Nf4 {[%clk 0:00:55.1]} 20... Be5 {[%clk 0:01:33.4]} 21.
Qxd8 {[%clk 0:00:35.3]} 21... Rfxd8 {[%clk 0:01:31.5]} 22. Nxe6 {[%clk
0:00:35.9]} 22... Kh7 {[%clk 0:01:27.8]} 23. Nxd8 {[%clk 0:00:33.2]} 23... Rxd8
{[%clk 0:01:28.3]} 24. Re1 {[%clk 0:00:29.3]} 24... Bf6 {[%clk 0:01:28.2]} 25.
g3 {[%clk 0:00:25.1]} 25... Rd2 {[%clk 0:01:27.6]} 26. b3 {[%clk 0:00:09.1]}
26... Kg6 {[%clk 0:01:25.3]} 27. Ne2 {[%clk 0:00:07.6]} 27... Rxa2 {[%clk
0:01:21.8]} 28. Nf4+ {[%clk 0:00:08.2]} 28... Kh7 {[%clk 0:01:17.7]} 29. Re6
{[%clk 0:00:06.7]} 29... Bg5 {[%clk 0:01:18]} 30. Nd5 {[%clk 0:00:04.6]} 30...
Nxd5 {[%clk 0:01:15.6]} 31. Bxd5 {[%clk 0:00:05.5]} 31... b5 {[%clk 0:01:15.6]}
32. Rc6 {[%clk 0:00:04.8]} 32... Be3 {[%clk 0:01:14.1]} 33. Rc7+ {[%clk
0:00:03.2]} 33... Kg6 {[%clk 0:01:14.1]} 34. Rc6+ {[%clk 0:00:02.3]} 34... Kg7
{[%clk 0:01:13.6]} 35. Bf3 {[%clk 0:00:02.6]} 35... a5 {[%clk 0:01:12.6]} 36.
Bd5 {[%clk 0:00:01.1]} 36... a4 {[%clk 0:01:12]} 37. bxa4 {[%clk 0:00:02]} 37...
Rxa4 {[%clk 0:01:12]} 38. Rc7+ {[%clk 0:00:02.5]} 38... Kf6 {[%clk 0:01:11.1]}
39. Bc6 {[%clk 0:00:02.2]} 39... Ra1+ {[%clk 0:01:07.7]} 40. Kg2 {[%clk
0:00:02.8]} 40... b4 {[%clk 0:01:07.8]} 41. Bd5 {[%clk 0:00:02.9]} 41... Ke5
{[%clk 0:01:07.7]} 42. Bg8 {[%clk 0:00:02.7]} 42... Kd4 {[%clk 0:01:02.6]} 43.
Kf3 {[%clk 0:00:02.7]} 43... Rf1+ {[%clk 0:01:01.6]} 44. Kg2 {[%clk 0:00:03.2]}
44... Rf2+ {[%clk 0:01:01.5]} 45. Kh3 {[%clk 0:00:03.8]} 45... Rc2 {[%clk
0:00:57.5]} 46. Rd7+ {[%clk 0:00:02.4]} 46... Kc3 {[%clk 0:00:57.3]} 47. Rc7
{[%clk 0:00:02.8]} 47... b3 {[%clk 0:00:56.3]} 48. Rb7 {[%clk 0:00:03.1]} 48...
c4 {[%clk 0:00:56]} 49. Rc7 {[%clk 0:00:02.2]} 49... Kb4 {[%clk 0:00:54.9]} 50.
Rb7+ {[%clk 0:00:02.3]} 50... Ka3 {[%clk 0:00:55.1]} 51. Ra7+ {[%clk 0:00:02.8]}
51... Bxa7 {[%clk 0:00:51.5]} 0-1

[Event "*** Titled Tuesday Blitz"]
[Site "Chess.com"]
[Date "2020.04.14"]
[Round "4"]
[White "fmshawnrl123"]
[Black "AustrianFalcon"]
[Result "1-0"]
[WhiteElo "2770"]
[BlackElo "2548"]
[TimeControl "180+1"]
[EndTime "10:39:49 PDT"]
[Termination "fmshawnrl123 won by checkmate"]

1. c4 {[%clk 0:03:00.9]} 1... g6 {[%clk 0:02:47]} 2. g3 {[%clk 0:03:00]} 2...
Bg7 {[%clk 0:02:45.1]} 3. Bg2 {[%clk 0:03:00.9]} 3... d6 {[%clk 0:02:41.8]} 4.
Nc3 {[%clk 0:03:00.3]} 4... Nc6 {[%clk 0:02:30.7]} 5. Nf3 {[%clk 0:02:59.2]}
5... e5 {[%clk 0:02:26.7]} 6. O-O {[%clk 0:02:52.3]} 6... Nge7 {[%clk
0:02:24.6]} 7. Rb1 {[%clk 0:02:51.2]} 7... a5 {[%clk 0:02:16.5]} 8. a3 {[%clk
0:02:51]} 8... Be6 {[%clk 0:02:14.9]} 9. d3 {[%clk 0:02:50.6]} 9... h6 {[%clk
0:02:11.7]} 10. b4 {[%clk 0:02:49.7]} 10... axb4 {[%clk 0:02:08.5]} 11. axb4
{[%clk 0:02:50.6]} 11... O-O {[%clk 0:02:09.1]} 12. b5 {[%clk 0:02:50.1]} 12...
Nb8 {[%clk 0:02:09.7]} 13. Bb2 {[%clk 0:02:44.1]} 13... Nd7 {[%clk 0:02:07.2]}
14. Ra1 {[%clk 0:02:37.2]} 14... Rxa1 {[%clk 0:01:52.8]} 15. Qxa1 {[%clk
0:02:38.1]} 15... f5 {[%clk 0:01:53.4]} 16. Qa7 {[%clk 0:02:33.6]} 16... b6
{[%clk 0:01:45.9]} 17. Ra1 {[%clk 0:02:24.8]} 17... g5 {[%clk 0:01:42.7]} 18.
Nd2 {[%clk 0:02:09.1]} 18... h5 {[%clk 0:01:31]} 19. Nd5 {[%clk 0:01:54.6]}
19... Nxd5 {[%clk 0:01:22.1]} 20. cxd5 {[%clk 0:01:52.3]} 20... Bf7 {[%clk
0:01:20.6]} 21. Nc4 {[%clk 0:01:41.6]} 21... Nf6 {[%clk 0:00:51.7]} 22. Qb7
{[%clk 0:01:34]} 22... Qd7 {[%clk 0:00:39.2]} 23. Qc6 {[%clk 0:01:23.5]} 23...
Qxc6 {[%clk 0:00:19.2]} 24. dxc6 {[%clk 0:01:24.4]} 24... Bxc4 {[%clk
0:00:14.9]} 25. dxc4 {[%clk 0:01:23.9]} 25... Kf7 {[%clk 0:00:13.5]} 26. Ra7
{[%clk 0:01:22.1]} 26... Rc8 {[%clk 0:00:13]} 27. c5 {[%clk 0:01:11.4]} 27...
dxc5 {[%clk 0:00:08.7]} 28. Bxe5 {[%clk 0:01:11.9]} 28... Ne8 {[%clk 0:00:07.8]}
29. Bd5+ {[%clk 0:01:11.6]} 29... Kf8 {[%clk 0:00:08]} 30. Be6 {[%clk
0:01:01.7]} 30... Rd8 {[%clk 0:00:06.8]} 31. Bxc7 {[%clk 0:00:58.1]} 31... Rd1+
{[%clk 0:00:06.4]} 32. Kg2 {[%clk 0:00:57.7]} 32... Nxc7 {[%clk 0:00:05.7]} 33.
Rxc7 {[%clk 0:00:58.6]} 33... Be5 {[%clk 0:00:06.3]} 34. Rf7+ {[%clk 0:00:56.8]}
34... Ke8 {[%clk 0:00:06.6]} 35. c7 {[%clk 0:00:53.9]} 35... Bxc7 {[%clk
0:00:07.2]} 36. Rxc7 {[%clk 0:00:54.8]} 36... Rd2 {[%clk 0:00:07.3]} 37. Bxf5
{[%clk 0:00:52]} 37... Rxe2 {[%clk 0:00:07.7]} 38. Bg6+ {[%clk 0:00:50]} 38...
Kd8 {[%clk 0:00:08]} 39. Rc6 {[%clk 0:00:50.6]} 39... Rb2 {[%clk 0:00:07.4]} 40.
Rxb6 {[%clk 0:00:50.1]} 40... c4 {[%clk 0:00:06.8]} 41. Bxh5 {[%clk 0:00:49.1]}
41... c3 {[%clk 0:00:06.7]} 42. Bg6 {[%clk 0:00:47.9]} 42... c2 {[%clk
0:00:06.9]} 43. Rc6 {[%clk 0:00:47.9]} 43... Rxb5 {[%clk 0:00:05.9]} 44. Bxc2
{[%clk 0:00:47.7]} 44... Rc5 {[%clk 0:00:06]} 45. Rxc5 {[%clk 0:00:47.7]} 45...
g4 {[%clk 0:00:06.3]} 46. Bd1 {[%clk 0:00:46]} 46... Ke7 {[%clk 0:00:07.2]} 47.
Bxg4 {[%clk 0:00:46.1]} 47... Kd6 {[%clk 0:00:08.1]} 48. Rg5 {[%clk 0:00:45.3]}
48... Ke7 {[%clk 0:00:08]} 49. h4 {[%clk 0:00:46.2]} 49... Kf6 {[%clk
0:00:08.8]} 50. Kh2 {[%clk 0:00:45.7]} 50... Ke7 {[%clk 0:00:09.7]} 51. Bf3
{[%clk 0:00:46.3]} 51... Kf6 {[%clk 0:00:09.8]} 52. Bh1 {[%clk 0:00:47.2]} 52...
Kf7 {[%clk 0:00:10.3]} 53. Kg2 {[%clk 0:00:48.1]} 53... Kf6 {[%clk 0:00:11.2]}
54. f4 {[%clk 0:00:49]} 54... Kf7 {[%clk 0:00:12.1]} 55. h5 {[%clk 0:00:49.2]}
55... Kf6 {[%clk 0:00:13]} 56. h6 {[%clk 0:00:50.1]} 56... Kf7 {[%clk
0:00:13.9]} 57. h7 {[%clk 0:00:50.9]} 57... Kf6 {[%clk 0:00:14.8]} 58. h8=Q+
{[%clk 0:00:51.4]} 58... Kf7 {[%clk 0:00:15.7]} 59. Qh7+ {[%clk 0:00:51.3]}
59... Ke6 {[%clk 0:00:16.6]} 60. Qh6+ {[%clk 0:00:51.4]} 60... Ke7 {[%clk
0:00:16.9]} 61. Rg7+ {[%clk 0:00:52.3]} 61... Kf8 {[%clk 0:00:17.7]} 62. Qh8#
{[%clk 0:00:53.2]} 1-0

[Event "*** Titled Tuesday Blitz"]
[Site "Chess.com"]
[Date "2020.04.14"]
[Round "4"]
[White "przemekpiotrowski"]
[Black "KafkaesqueKnight"]
[Result "1-0"]
[WhiteElo "2400"]
[BlackElo "2137"]
[TimeControl "180+1"]
[EndTime "10:39:49 PDT"]
[Termination "przemekpiotrowski won on time"]

1. d4 {[%clk 0:03:00.9]} 1... Nf6 {[%clk 0:02:59.6]} 2. Nf3 {[%clk 0:02:58.6]}
2... g6 {[%clk 0:02:56.1]} 3. g3 {[%clk 0:02:58.9]} 3... Bg7 {[%clk 0:02:56]} 4.
Bg2 {[%clk 0:02:59.6]} 4... O-O {[%clk 0:02:55.6]} 5. O-O {[%clk 0:03:00.4]}
5... d6 {[%clk 0:02:55.8]} 6. c4 {[%clk 0:03:00.9]} 6... Nbd7 {[%clk 0:02:54.3]}
7. Nc3 {[%clk 0:03:01.4]} 7... e5 {[%clk 0:02:54]} 8. e4 {[%clk 0:03:02]} 8...
Re8 {[%clk 0:02:52.9]} 9. b3 {[%clk 0:03:01]} 9... exd4 {[%clk 0:02:48.5]} 10.
Nxd4 {[%clk 0:03:01.9]} 10... Nc5 {[%clk 0:02:45.7]} 11. Re1 {[%clk 0:03:01.7]}
11... Bg4 {[%clk 0:02:23]} 12. f3 {[%clk 0:03:00.6]} 12... Nfxe4 {[%clk
0:02:20.3]} 13. Nxe4 {[%clk 0:02:51.7]} 13... Nxe4 {[%clk 0:02:19.6]} 14. Bb2
{[%clk 0:02:32.2]} 14... Nc5 {[%clk 0:01:22.5]} 15. fxg4 {[%clk 0:02:14.6]}
15... Rxe1+ {[%clk 0:01:19.8]} 16. Qxe1 {[%clk 0:02:15.5]} 16... Nd3 {[%clk
0:01:20.1]} 17. Qd2 {[%clk 0:02:04.5]} 17... Nxb2 {[%clk 0:01:21]} 18. Rf1
{[%clk 0:01:56.6]} 18... c6 {[%clk 0:01:03.1]} 19. g5 {[%clk 0:01:52.4]} 19...
Qb6 {[%clk 0:01:00.9]} 20. Rf4 {[%clk 0:01:42.9]} 20... c5 {[%clk 0:00:34.4]}
21. Nb5 {[%clk 0:01:28.2]} 21... a6 {[%clk 0:00:20]} 22. Qxd6 {[%clk 0:01:12.3]}
22... Qxd6 {[%clk 0:00:17.3]} 23. Nxd6 {[%clk 0:01:13.2]} 23... Rd8 {[%clk
0:00:16.4]} 24. Nxf7 {[%clk 0:00:59.5]} 24... Rd1+ {[%clk 0:00:15.8]} 25. Bf1
{[%clk 0:00:46.9]} 25... Bd4+ {[%clk 0:00:09.6]} 26. Kg2 {[%clk 0:00:46.6]}
26... Rd2+ {[%clk 0:00:05.3]} 27. Kh3 {[%clk 0:00:45]} 27... h5 {[%clk
0:00:02.2]} 28. Nh6+ {[%clk 0:00:38.2]} 28... Kh8 {[%clk 0:00:02.3]} 29. Rf8+
{[%clk 0:00:36]} 29... Kh7 {[%clk 0:00:01.8]} 30. Rf7+ {[%clk 0:00:32.8]} 30...
Kh8 {[%clk 0:00:02]} 31. Bg2 {[%clk 0:00:27.7]} 31... Nd1 {[%clk 0:00:01.6]} 32.
g4 {[%clk 0:00:09.9]} 1-0

[Event "*** Titled Tuesday Blitz"]
[Site "Chess.com"]
[Date "2020.04.14"]
[Round "4"]
[White "ahappypawn"]
[Black "vanea_03"]
[Result "0-1"]
[WhiteElo "2324"]
[BlackElo "2617"]
[TimeControl "180+1"]
[EndTime "10:39:50 PDT"]
[Termination "vanea_03 won on time"]

1. c4 {[%clk 0:03:00.9]} 1... e5 {[%clk 0:02:57.6]} 2. Nc3 {[%clk 0:03:00.4]}
2... Nf6 {[%clk 0:02:57.8]} 3. g3 {[%clk 0:03:00]} 3... Bb4 {[%clk 0:02:56.1]}
4. Bg2 {[%clk 0:02:55.7]} 4... Bxc3 {[%clk 0:02:55.6]} 5. bxc3 {[%clk
0:02:55.6]} 5... O-O {[%clk 0:02:52.3]} 6. e4 {[%clk 0:02:52.8]} 6... d6 {[%clk
0:02:48.1]} 7. Ne2 {[%clk 0:02:50.5]} 7... a6 {[%clk 0:02:46.7]} 8. O-O {[%clk
0:02:48.4]} 8... Be6 {[%clk 0:02:45.6]} 9. d3 {[%clk 0:02:42.5]} 9... b5 {[%clk
0:02:45.8]} 10. cxb5 {[%clk 0:02:37.7]} 10... axb5 {[%clk 0:02:46.7]} 11. Qc2
{[%clk 0:02:34.9]} 11... Nbd7 {[%clk 0:02:36.4]} 12. f4 {[%clk 0:02:27.8]} 12...
Nb6 {[%clk 0:02:33.8]} 13. h3 {[%clk 0:02:16.8]} 13... Qc8 {[%clk 0:02:11.4]}
14. f5 {[%clk 0:02:11.7]} 14... Bd7 {[%clk 0:02:09.4]} 15. g4 {[%clk 0:02:11]}
15... c5 {[%clk 0:02:04.4]} 16. g5 {[%clk 0:01:58.9]} 16... Ne8 {[%clk
0:02:04.5]} 17. Ng3 {[%clk 0:01:52.8]} 17... c4 {[%clk 0:01:46.3]} 18. d4 {[%clk
0:01:51.6]} 18... Qc6 {[%clk 0:01:28.6]} 19. Qf2 {[%clk 0:01:09.5]} 19... Na4
{[%clk 0:01:18.9]} 20. Bd2 {[%clk 0:00:52.1]} 20... b4 {[%clk 0:01:13.1]} 21.
cxb4 {[%clk 0:00:37.9]} 21... c3 {[%clk 0:01:13.7]} 22. Be3 {[%clk 0:00:35.3]}
22... Nb2 {[%clk 0:01:07.6]} 23. Nh5 {[%clk 0:00:23.5]} 23... Nc4 {[%clk
0:00:54.7]} 24. dxe5 {[%clk 0:00:13.9]} 24... Nxe5 {[%clk 0:00:40.7]} 25. Bd4
{[%clk 0:00:10.2]} 25... Nc7 {[%clk 0:00:32.7]} 26. f6 {[%clk 0:00:08.9]} 26...
g6 {[%clk 0:00:29.7]} 27. Nf4 {[%clk 0:00:08.7]} 27... Rfc8 {[%clk 0:00:23.4]}
28. Qh4 {[%clk 0:00:07.9]} 28... Qc4 {[%clk 0:00:18.9]} 29. Be3 {[%clk
0:00:05.1]} 29... Bc6 {[%clk 0:00:14.6]} 30. Qh6 {[%clk 0:00:05.2]} 30... Ne8
{[%clk 0:00:15.2]} 31. Rfd1 {[%clk 0:00:03.8]} 31... Bxe4 {[%clk 0:00:12.8]} 32.
Rxd6 {[%clk 0:00:04.1]} 32... Bxg2 {[%clk 0:00:10.8]} 33. Kxg2 {[%clk
0:00:03.5]} 33... Qe4+ {[%clk 0:00:09.9]} 34. Kf2 {[%clk 0:00:03.1]} 34... Qf3+
{[%clk 0:00:10]} 35. Kg1 {[%clk 0:00:02.9]} 35... Qxe3+ {[%clk 0:00:10.2]} 36.
Kh1 {[%clk 0:00:03.2]} 36... Qxf4 {[%clk 0:00:09]} 0-1